lending/lending_fUSD_20240928
["ID","MTS","AMOUNT","RATE_DAILY","PERIOD"]
[339385712,1727536232016,-300.0,0.00012192,2]
[339385713,1727536232025,-358.28,0.00012192,2]
[339385714,1727536232034,-428.48,0.00012192,2]
[339385715,1727536232044,-358.28,0.00012192,2]
[339385716,1727536232053,-300.0,0.00012192,2]
[339385717,1727536232062,-300.0,0.00012192,2]
[339385718,1727536232072,-150.0,0.00012192,2]
[339385719,1727536232081,-428.48,0.00012192,2]
[339385720,1727536232092,-150.0,0.00012192,2]
[339385721,1727536232102,-518.25,0.00012192,2]
[339385722,1727536232111,-150.0,0.00012192,2]
[339385723,1727536232120,-428.48,0.00012192,2]
[339385724,1727536232130,-428.48,0.00012192,2]
[339385725,1727536232143,-428.48,0.00012192,2]
[339385726,1727536232154,-241.43,0.00012196,2]
[339385727,1727536232165,-151.88,0.000122,2]
[339385728,1727536232175,-214.4462,0.00012314,2]
[339385729,1727536232184,-633.82,0.00012329,2]
[339385730,1727536232195,-257.596,0.00012364,2]
[339385731,1727536232206,-150.0,0.00012364,2]
[339385732,1727536232216,-158.15908,0.00012414,2]
[339385733,1727536232227,-3165.240144,0.00012414,2]
[339385734,1727536232236,-164.280998,0.00012414,2]
[339385735,1727536232246,-183.159213,0.00012414,2]
[339385736,1727536232255,-12987.2125,0.00012414,2]
[339385737,1727536232265,-158.15908,0.00012414,2]
[339385738,1727536232274,-6529.556502,0.00012414,2]
[339385739,1727536232283,-293.054741,0.00012414,2]
[339385740,1727536232293,-164.280998,0.00012414,2]
[339385741,1727536232302,-184.073224,0.00012414,2]
[339385742,1727536232311,-180.0,0.00012488,2]
[339385743,1727536232320,-2500.0,0.00012507,2]
[339385744,1727536232330,-3165.240144,0.00012569,2]
[339385745,1727536232339,-12987.2125,0.00012569,2]
[339385746,1727536232348,-6529.556502,0.00012569,2]
[339385747,1727536232358,-293.054741,0.00012569,2]
[339385748,1727536232367,-19414.9342,0.00012576,2]
[339385749,1727536232377,-196.7269,0.00012576,2]
[339385750,1727536232388,-9701.87635016,0.00012592,2]
[339385751,1727536232401,-5355.72364984,0.00012592,2]
[339385752,1727536232410,-1549.0,0.000126,2]
[339385753,1727536232420,-1924.6496,0.00012607,2]
[339385754,1727536232429,-9544.3016,0.00012607,2]
[339385755,1727536232438,-213.1901,0.00012607,2]
[339385756,1727536232448,-1723.6356,0.00012607,2]
[339385757,1727536232458,-164.280998,0.00012621,2]
[339385758,1727536232467,-330.86882418,0.00012638,2]
[339385759,1727536232477,-940.165,0.00012708,2]
[339385760,1727536232486,-493.711,0.00012708,2]
[339385761,1727536232495,-448.0,0.00012708,2]
[339385762,1727536232504,-3165.240144,0.00012724,2]
[339385763,1727536232514,-12987.2125,0.00012724,2]
[339385764,1727536232523,-6529.556502,0.00012724,2]
[339385765,1727536232532,-293.054741,0.00012724,2]
[339385766,1727536232541,-150.0,0.00012745,2]
[339385767,1727536232551,-300.0,0.0001275,2]
[339385768,1727536232560,-200.0,0.00012783,2]
[339385769,1727536232569,-323.332,0.00012791,2]
[339385770,1727536232578,-173.519,0.00012791,2]
[339385771,1727536232587,-150.0,0.00012796,2]
[339385772,1727536232597,-162.4233,0.000128,2]
[339385773,1727536232606,-213.3128,0.000128,2]
[339385774,1727536232787,-252.62,0.000128,2]
[339385775,1727536232797,-7228.1389,0.000128,2]
[339385776,1727536232807,-301.19013755,0.000128,2]
[339385777,1727536232816,-168.02374186,0.000128,2]
[339385778,1727536232825,-164.280998,0.00012827,2]
[339385779,1727536232834,-239.7798592,0.00012841,2]
[339385780,1727536232843,-500.0,0.00012846,2]
[339385781,1727536232852,-150.0,0.00012864,2]
[339385782,1727536232861,-529.97694791,0.00012873,2]
[339385783,1727536232871,-150.0,0.00012879,2]
[339385784,1727536232880,-3165.240144,0.00012879,2]
[339385785,1727536232891,-12987.2125,0.00012879,2]
[339385786,1727536232900,-6529.556502,0.00012879,2]
[339385787,1727536232909,-293.054741,0.00012879,2]
[339385788,1727536232918,-193.43531538,0.0001289,2]
[339385789,1727536232927,-150.26,0.0001289,2]
[339385790,1727536232937,-150.26,0.0001289,2]
[339385791,1727536232947,-150.26,0.0001289,2]
[339385792,1727536232956,-500.0,0.00012899,2]
[339385793,1727536232965,-500.0,0.00012899,2]
[339385794,1727536232974,-500.0,0.00012899,2]
[339385795,1727536232984,-500.0,0.00012899,2]
[339385796,1727536232993,-334.42980594,0.00012899,2]
[339385797,1727536233003,-488.1035,0.000129,2]
[339385798,1727536233012,-484.84284909,0.000129,2]
[339385799,1727536233021,-46458.9036,0.000129,2]
[339385800,1727536233030,-103176.3955,0.000129,2]
[339385801,1727536233040,-690.0699,0.000129,2]
[339385802,1727536233049,-199.2,0.000129,2]
[339385803,1727536233058,-477.5161,0.000129,2]
[339385804,1727536233067,-156956.00781171,0.000129,2]
[339385805,1727536233089,-1081.0,0.00012364,2]
[339385806,1727536233098,-13013.7721305,0.000129,2]
[339385808,1727536237640,-13301.34632884,0.000129,2]
[339385809,1727536237652,-3445.79092289,0.000129,2]
[339385810,1727536237747,-261.38,0.000129,2]
[339385811,1727536237758,-646.57486979,0.000129,2]
[339385812,1727536237770,-57375.12793627,0.000129,2]
[339385813,1727536237779,-1000.0,0.000129,2]
[339385814,1727536237788,-37543.5263,0.000129,2]
[339385815,1727536237797,-2247.47,0.000129,2]
[339385816,1727536237806,-201.34185824,0.000129,2]
[339385817,1727536237815,-600.0,0.000129,2]
[339385818,1727536237825,-227.0,0.000129,2]
[339385819,1727536237834,-209.92,0.000129,2]
[339385820,1727536237843,-164.77,0.000129,2]
[339385821,1727536237852,-164.64948289,0.000129,2]
[339385822,1727536237862,-164.64948289,0.000129,2]
[339385823,1727536237871,-164.64948289,0.000129,2]
[339385824,1727536237881,-165.14,0.000129,2]
[339385825,1727536237891,-218.25563974,0.000129,2]
[339385826,1727536237900,-218.75,0.000129,2]
[339385827,1727536237909,-222.16230457,0.000129,2]
[339385828,1727536237919,-188.0154553,0.000129,2]
[339385829,1727536237928,-168.02374185,0.000129,2]
[339385830,1727536237937,-2500.0,0.000129,2]
[339385831,1727536237947,-2500.0,0.000129,2]
[339385832,1727536237956,-1500.0,0.00012926,2]
[339385833,1727536237965,-1500.0,0.00012939,2]
[339385834,1727536237976,-150.26,0.0001299,2]
[339385835,1727536237985,-150.26,0.0001299,2]
[339385836,1727536237994,-150.26,0.0001299,2]
[339385837,1727536238003,-150.26,0.0001299,2]
[339385838,1727536238013,-193.43531538,0.0001299,2]
[339385839,1727536238022,-150.26,0.0001299,2]
[339385840,1727536238032,-150.26,0.0001299,2]
[339385841,1727536238041,-150.26,0.0001299,2]
[339385842,1727536238051,-150.26,0.0001299,2]
[339385843,1727536238061,-150.26,0.0001299,2]
[339385844,1727536238070,-150.26,0.0001299,2]
[339385845,1727536238079,-150.26,0.0001299,2]
[339385846,1727536238089,-150.26,0.0001299,2]
[339385847,1727536238098,-150.26,0.0001299,2]
[339385848,1727536238107,-150.26,0.0001299,2]
[339385849,1727536238118,-150.26,0.0001299,2]
[339385850,1727536238127,-150.26,0.0001299,2]
[339385852,1727536238136,-150.26,0.0001299,2]
[339385854,1727536238147,-150.26,0.0001299,2]
[339385856,1727536238156,-150.26,0.0001299,2]
[339385857,1727536238165,-150.26,0.0001299,2]
[339385858,1727536238174,-150.26,0.0001299,2]
[339385859,1727536238184,-150.26,0.0001299,2]
[339385860,1727536238194,-150.26,0.0001299,2]
[339385861,1727536238204,-150.26,0.0001299,2]
[339385862,1727536238213,-150.26,0.0001299,2]
[339385863,1727536238222,-150.26,0.0001299,2]
[339385864,1727536238231,-150.26,0.0001299,2]
[339385865,1727536238241,-150.26,0.0001299,2]
[339385866,1727536238250,-150.26,0.0001299,2]
[339385867,1727536238260,-150.26,0.0001299,2]
[339385868,1727536238269,-150.26,0.0001299,2]
[339385869,1727536238279,-150.26,0.0001299,2]
[339385870,1727536238288,-150.26,0.0001299,2]
[339385871,1727536238298,-150.26,0.0001299,2]
[339385872,1727536238307,-150.26,0.0001299,2]
[339385873,1727536238317,-150.26,0.0001299,2]
[339385874,1727536238326,-150.26,0.0001299,2]
[339385875,1727536238336,-150.26,0.0001299,2]
[339385876,1727536238345,-150.26,0.0001299,2]
[339385877,1727536238355,-150.26,0.0001299,2]
[339385878,1727536238365,-150.26,0.0001299,2]
[339385879,1727536238374,-150.26,0.0001299,2]
[339385880,1727536238384,-150.26,0.0001299,2]
[339385881,1727536238394,-150.26,0.0001299,2]
[339385882,1727536238403,-150.26,0.0001299,2]
[339385883,1727536238412,-150.26,0.0001299,2]
[339385884,1727536238422,-150.26,0.0001299,2]
[339385885,1727536238431,-150.26,0.0001299,2]
[339385886,1727536238440,-150.26,0.0001299,2]
[339385887,1727536238450,-150.26,0.0001299,2]
[339385888,1727536238459,-150.26,0.0001299,2]
[339385889,1727536238469,-150.26,0.0001299,2]
[339385890,1727536238479,-150.26,0.0001299,2]
[339385891,1727536238489,-150.26,0.0001299,2]
[339385892,1727536238498,-150.26,0.0001299,2]
[339385893,1727536238508,-150.26,0.0001299,2]
[339385894,1727536238518,-150.26,0.0001299,2]
[339385895,1727536238527,-150.26,0.0001299,2]
[339385896,1727536238537,-150.26,0.0001299,2]
[339385897,1727536238546,-150.26,0.0001299,2]
[339385898,1727536238555,-150.26,0.0001299,2]
[339385899,1727536238565,-150.26,0.0001299,2]
[339385900,1727536238574,-150.26,0.0001299,2]
[339385901,1727536238583,-150.26,0.0001299,2]
[339385902,1727536238592,-150.26,0.0001299,2]
[339385903,1727536238602,-150.26,0.0001299,2]
[339385904,1727536238611,-150.26,0.0001299,2]
[339385905,1727536238620,-150.26,0.0001299,2]
[339385906,1727536238630,-150.26,0.0001299,2]
[339385907,1727536238644,-150.26,0.0001299,2]
[339385908,1727536238653,-150.26,0.0001299,2]
[339385909,1727536238663,-150.26,0.0001299,2]
[339385910,1727536238672,-150.26,0.0001299,2]
[339385911,1727536238682,-150.26,0.0001299,2]
[339385912,1727536238691,-150.26,0.0001299,2]
[339385913,1727536238701,-150.26,0.0001299,2]
[339385914,1727536238710,-150.26,0.0001299,2]
[339385915,1727536238719,-150.26,0.0001299,2]
[339385916,1727536238728,-150.26,0.0001299,2]
[339385917,1727536238738,-150.26,0.0001299,2]
[339385918,1727536238747,-150.26,0.0001299,2]
[339385919,1727536238757,-150.26,0.0001299,2]
[339385920,1727536238767,-150.26,0.0001299,2]
[339385921,1727536238776,-150.26,0.0001299,2]
[339385922,1727536238785,-150.26,0.0001299,2]
[339385923,1727536238794,-150.26,0.0001299,2]
[339385924,1727536238803,-150.26,0.0001299,2]
[339385925,1727536238812,-150.26,0.0001299,2]
[339385926,1727536238822,-150.26,0.0001299,2]
[339385927,1727536238832,-1429.30534422,0.00012999,3]
[339385928,1727536238842,-534.70320205,0.00012999,2]
[339385929,1727536238852,-155.82709448,0.00012999,2]
[339385930,1727536238862,-1447.89608914,0.00013,2]
[339385931,1727536238871,-234278.2480461,0.00013,2]
[339385932,1727536238885,-16984.080955,0.00013,2]
[339385933,1727536238897,-7631.41518604,0.00013,2]
[339385935,1727536239902,-13241.67132348,0.00013,2]
[339385936,1727536239912,-69504.39340022,0.00013,2]
[339385937,1727536239923,-137427.44716514,0.00013,2]
[339385938,1727536239935,-6405.52589726,0.00013,2]
[339385939,1727536239946,-7177.8541994,0.00013,2]
[339385940,1727536239957,-389.44550813,0.00013,2]
[339385941,1727536240018,-464.88922511,0.00013,2]
[339385947,1727536243339,-605.16254518,0.00013,2]
[339385970,1727536245681,-12090.60726113,0.00013,2]
[339385972,1727536245692,-91540.19058403,0.00013,2]
[339385979,1727536245869,-933.479775,0.00013,2]
[339386006,1727536398546,200.0,0.0002196,120]
[339386007,1727536653904,158.13,9.323e-05,2]
[339386008,1727536691160,1000.0,0.00021,60]
[339386009,1727536769453,6000.0,0.00021,60]
[339386010,1727536843312,232.27,0.00011064,2]
[339386011,1727536910953,200.0,0.00011055,2]
[339386012,1727536934542,1000.0,0.00011045,2]
[339386013,1727536958278,2000.0,0.00011059,2]
[339386014,1727536998331,358.26,0.00011111,2]
[339386015,1727537057645,23393.625,0.0001,2]
[339386016,1727537057674,224878.70201271,0.0001,2]
[339386017,1727537101547,2220.505095,0.0001,2]
[339386018,1727537137802,887.19,0.00011024,2]
[339386019,1727537140216,766.99,0.00011024,2]
[339386026,1727537155373,398.06,0.00011008,2]
[339386027,1727537179354,250.0,0.00011012,2]
[339386028,1727537201519,250.0,0.00011045,2]
[339386029,1727537236862,158.13,9.149e-05,2]
[339386086,1727537254233,2331.03,0.00011036,2]
[339386087,1727537270905,8929.22,0.00011076,2]
[339386088,1727537289130,23890.0,0.00011084,2]
[339386116,1727537401241,185.27,0.00011085,2]
[339386120,1727537431901,-150.0,0.0001114,2]
[339386121,1727537431911,-155.61,0.0001117,2]
[339386122,1727537431922,-186.14,0.00011203,2]
[339386125,1727537431932,-186.14,0.00011221,2]
[339386127,1727537431941,-186.14,0.0001124,2]
[339386128,1727537431951,-186.14,0.00011259,2]
[339386130,1727537431961,-150.99,0.0001128,2]
[339386131,1727537431970,-1220.03,0.00011325,2]
[339386132,1727537431980,-300.0,0.00011325,2]
[339386133,1727537431989,-499.99,0.00011326,2]
[339386134,1727537431998,-189.32407077,0.00011326,2]
[339386135,1727537432010,-692.10592923,0.00011326,2]
[339386136,1727537432020,-5991.0,0.00011326,2]
[339386137,1727537432030,-253.31,0.00011326,2]
[339386138,1727537432039,-4631.6652437,0.00011339,2]
[339386139,1727537432048,-150.0,0.00011688,2]
[339386140,1727537432058,-150.0,0.00011688,2]
[339386141,1727537432067,-204.0,0.00011688,2]
[339386142,1727537432076,-161.10795361,0.00011688,2]
[339386143,1727537432086,-150.0,0.00011688,2]
[339386144,1727537432095,-300.0,0.000119,4]
[339386145,1727537432105,-3056.0212,0.00011955,2]
[339386146,1727537432114,-150.0,0.00011999,2]
[339386147,1727537432124,-70190.88070895,0.00012,2]
[339386148,1727537432134,-600.0,0.00012,4]
[339386149,1727537432145,-158.13,0.00012017,2]
[339386150,1727537432162,-423.08,0.00012055,2]
[339386151,1727537432173,-423.08,0.00012055,2]
[339386152,1727537432182,-423.08,0.00012055,2]
[339386153,1727537432194,-423.08,0.00012055,2]
[339386154,1727537432204,-423.08,0.00012055,2]
[339386155,1727537432214,-423.08,0.00012055,2]
[339386156,1727537432225,-423.08,0.00012055,2]
[339386157,1727537432235,-423.08,0.00012055,2]
[339386159,1727537432244,-242.09,0.00012055,2]
[339386161,1727537432254,-753.95,0.00012055,2]
[339386163,1727537432263,-753.95,0.00012055,2]
[339386164,1727537432274,-753.95,0.00012055,2]
[339386165,1727537432284,-753.95,0.00012055,2]
[339386166,1727537432294,-753.95,0.00012055,2]
[339386167,1727537432304,-753.95,0.00012055,2]
[339386168,1727537432314,-753.95,0.00012055,2]
[339386170,1727537432324,-423.08,0.00012055,2]
[339386172,1727537432333,-423.08,0.00012055,2]
[339386173,1727537432343,-751.47,0.00012055,2]
[339386175,1727537432353,-423.08,0.00012055,2]
[339386176,1727537432363,-423.08,0.000121,2]
[339386177,1727537432372,-423.08,0.000121,2]
[339386178,1727537432382,-423.08,0.000121,2]
[339386179,1727537432393,-423.08,0.000121,2]
[339386180,1727537432402,-423.08,0.000121,2]
[339386181,1727537432412,-423.08,0.000121,2]
[339386182,1727537432421,-299.99,0.000121,2]
[339386183,1727537432430,-1000.0,0.000121,4]
[339386184,1727537432439,-423.08,0.00012141,2]
[339386186,1727537432448,-423.08,0.00012141,2]
[339386188,1727537432459,-423.08,0.00012141,2]
[339386190,1727537432468,-423.08,0.00012141,2]
[339386192,1727537432479,-423.08,0.00012141,2]
[339386194,1727537432489,-423.08,0.00012141,2]
[339386196,1727537432498,-180.0,0.00012172,2]
[339386198,1727537432508,-150.01,0.00012188,2]
[339386200,1727537432517,-150.0,0.00012192,2]
[339386201,1727537432526,-150.0,0.00012192,2]
[339386202,1727537432536,-150.0,0.00012192,2]
[339386203,1727537432545,-427.68,0.00012192,2]
[339386204,1727537432555,-150.0,0.00012192,2]
[339386205,1727537432565,-301.73,0.00012192,2]
[339386206,1727537432575,-428.48,0.00012192,2]
[339386207,1727537432590,-361.47,0.00012192,2]
[339386208,1727537432599,-150.0,0.00012192,2]
[339386209,1727537432610,-300.0,0.00012192,2]
[339386210,1727537432620,-428.48,0.00012192,2]
[339386211,1727537432629,-150.0,0.00012192,2]
[339386212,1727537432639,-150.0,0.00012192,2]
[339386213,1727537432649,-150.0,0.00012192,2]
[339386214,1727537432659,-150.0,0.00012192,2]
[339386215,1727537432669,-428.48,0.00012192,2]
[339386216,1727537432678,-150.0,0.00012192,2]
[339386217,1727537432688,-428.48,0.00012192,2]
[339386218,1727537432697,-150.0,0.00012192,2]
[339386219,1727537432707,-428.48,0.00012192,2]
[339386220,1727537432715,-150.0,0.00012192,2]
[339386221,1727537432725,-150.0,0.00012192,2]
[339386222,1727537432735,-856.4,0.00012192,2]
[339386223,1727537432744,-151.21,0.00012192,2]
[339386224,1727537432754,-150.0,0.00012192,2]
[339386225,1727537432763,-150.0,0.00012192,2]
[339386226,1727537432772,-423.08,0.000122,2]
[339386227,1727537432781,-423.08,0.000122,2]
[339386228,1727537432791,-1300.0,0.000122,4]
[339386229,1727537432800,-396.14,0.00012245,2]
[339386230,1727537432810,-9381.62289101,0.00012276,2]
[339386231,1727537432820,-1700.0,0.000123,4]
[339386232,1727537432829,-500.0,0.00012311,2]
[339386233,1727537432839,-1000.0,0.00012314,2]
[339386234,1727537432848,-1567.6,0.00012329,2]
[339386235,1727537432857,-150.0,0.00012337,2]
[339386236,1727537432866,-9381.62289096,0.00012345,2]
[339386237,1727537432875,-633.6349,0.00012376,2]
[339386238,1727537432885,-37259.8738,0.00012376,2]
[339386239,1727537432894,-5118.4206,0.00012376,2]
[339386240,1727537432903,-902.9071,0.00012376,2]
[339386241,1727537432913,-6518.1877,0.00012376,2]
[339386242,1727537432922,-300.0,0.000124,4]
[339386243,1727537432931,-426.0181,0.00012407,2]
[339386244,1727537432940,-788.8775,0.00012407,2]
[339386245,1727537432949,-3739.852364,0.00012414,2]
[339386246,1727537432958,-184.073224,0.00012414,2]
[339386247,1727537432967,-266.19139,0.00012414,2]
[339386248,1727537432978,-195.550393,0.00012414,2]
[339386249,1727537432997,-3533.124387,0.00012414,2]
[339386250,1727537433006,-2697.817792,0.00012414,2]
[339386251,1727537433015,-9381.62289096,0.00012415,2]
[339386252,1727537433025,-1000.0,0.00012426,2]
[339386253,1727537433034,-420.0,0.0001244,2]
[339386254,1727537433044,-169.34,0.00012445,2]
[339386255,1727537433053,-232.27,0.00012447,2]
[339386256,1727537433063,-151.6,0.00012466,2]
[339386257,1727537433072,-4146.9096,0.00012476,2]
[339386258,1727537433081,-107624.10667812,0.00012476,2]
[339386259,1727537433102,-308.06435349,0.00012476,2]
[339386260,1727537433114,-61517.22146839,0.00012476,2]
[339386261,1727537433123,-18030.6459,0.00012476,2]
[339386262,1727537433133,-189.59,0.00012484,2]
[339386263,1727537433143,-9381.62289096,0.00012484,2]
[339386264,1727537433156,-2016.9627282,0.000125,2]
[339386265,1727537433166,-300.0,0.000125,4]
[339386266,1727537433176,-291.11386823,0.000125,2]
[339386267,1727537433186,-9381.62289096,0.00012553,2]
[339386268,1727537433197,-3739.852364,0.00012569,2]
[339386269,1727537433207,-266.19139,0.00012569,2]
[339386270,1727537433216,-195.550393,0.00012569,2]
[339386271,1727537433226,-3533.124387,0.00012569,2]
[339386272,1727537433236,-2697.817792,0.00012569,2]
[339386273,1727537433245,-300.0,0.000126,4]
[339386274,1727537433256,-6598.74192561,0.00012623,2]
[339386275,1727537433268,-2782.88096535,0.00012623,2]
[339386276,1727537433277,-169.99921631,0.00012687,2]
[339386277,1727537433287,-9381.62289096,0.00012692,2]
[339386278,1727537433296,-376.47781954,0.00012693,2]
[339386279,1727537433305,-300.0,0.000127,4]
[339386280,1727537433315,-3739.852364,0.00012724,2]
[339386281,1727537433325,-266.19139,0.00012724,2]
[339386282,1727537433335,-195.550393,0.00012724,2]
[339386283,1727537433345,-3533.124387,0.00012724,2]
[339386284,1727537433354,-2697.817792,0.00012724,2]
[339386285,1727537433364,-150.0,0.00012737,2]
[339386286,1727537433374,-169.9992163,0.00012744,2]
[339386287,1727537433383,-9381.62289096,0.00012761,2]
[339386288,1727537433393,-153.4,0.0001277,2]
[339386289,1727537433403,-500.0,0.00012779,2]
[339386290,1727537433412,-500.0,0.00012779,2]
[339386291,1727537433422,-428.2331917,0.00012779,2]
[339386292,1727537433431,-174.214,0.0001278,2]
[339386293,1727537433440,-362.111,0.0001278,2]
[339386294,1727537433450,-11347.03038918,0.0001278,2]
[339386295,1727537433461,-1284.40976051,0.0001278,2]
[339386296,1727537433473,-405.84115355,0.0001278,2]
[339386297,1727537433492,-575.10458265,0.0001278,2]
[339386298,1727537433507,-38728.88450793,0.0001278,2]
[339386301,1727537437936,-500.0,0.00012311,2]
[339386304,1727537437946,-138.76806,0.00012538,2]
[339386306,1727537437959,-634.7042152,0.00012538,2]
[339386307,1727537438050,-307.5277248,0.00012538,2]
[339386308,1727537438060,-5692.4722752,0.0001278,2]
[339386309,1727537438071,-999.38805108,0.0001278,2]
[339386310,1727537438082,-1002.26561995,0.0001278,2]
[339386311,1727537438166,-21242.7323858,0.0001278,2]
[339386312,1727537438281,-478.62937922,0.0001278,2]
[339386328,1727537439984,-170.91490946,0.00012311,2]
[339386329,1727537439993,-196695.26198854,0.0001278,2]
[339386330,1727537440005,-26915.35328452,0.0001278,2]
[339386331,1727537440015,-200.0,0.00012787,2]
[339386332,1727537440024,-786.0,0.000128,4]
[339386333,1727537440033,-169.9992163,0.000128,2]
[339386334,1727537440042,-2319.55616078,0.000128,2]
[339386335,1727537440051,-233.7156763,0.00012801,2]
[339386336,1727537440061,-9381.62289096,0.00012831,2]
[339386337,1727537440070,-150.0,0.00012858,2]
[339386338,1727537440079,-500.0,0.00012865,2]
[339386339,1727537440088,-19678.88114285,0.0001287,2]
[339386340,1727537440099,-1832.89551806,0.0001287,2]
[339386341,1727537440110,-53283.0315112,0.0001287,2]
[339386342,1727537440121,-13645.98829756,0.0001287,2]
[339386343,1727537440132,-379.9422459,0.0001287,2]
[339386344,1727537440143,-24908.61380255,0.0001287,2]
[339386345,1727537440157,-500.0,0.00012873,2]
[339386346,1727537440166,-500.0,0.00012874,2]
[339386347,1727537440176,-500.0,0.00012878,2]
[339386348,1727537440185,-3739.852364,0.00012879,2]
[339386349,1727537440194,-266.19139,0.00012879,2]
[339386350,1727537440205,-195.550393,0.00012879,2]
[339386351,1727537440214,-3533.124387,0.00012879,2]
[339386352,1727537440223,-2697.817792,0.00012879,2]
[339386353,1727537440235,-162.54018243,0.0001288,2]
[339386354,1727537440244,-500.0,0.00012882,2]
[339386355,1727537440253,-153.4,0.0001289,2]
[339386356,1727537440262,-153.4,0.0001289,2]
[339386357,1727537440271,-153.4,0.0001289,2]
[339386358,1727537440280,-153.4,0.0001289,2]
[339386359,1727537440289,-153.4,0.0001289,2]
[339386360,1727537440298,-500.0,0.00012891,2]
[339386361,1727537440307,-179.99,0.00012893,2]
[339386362,1727537440317,-500.0,0.00012896,2]
[339386363,1727537440326,-374.29224144,0.00012899,2]
[339386364,1727537440335,-1241.3869,0.000129,2]
[339386365,1727537440345,-5625.97445731,0.000129,2]
[339386366,1727537440356,-89099.0984953,0.000129,2]
[339386367,1727537440368,-1141.2271228,0.000129,2]
[339386368,1727537440379,-267.55,0.000129,2]
[339386369,1727537440390,-976.22792937,0.000129,2]
[339386370,1727537440401,-310.80001089,0.000129,2]
[339386371,1727537440412,-6757.96750055,0.000129,2]
[339386372,1727537440423,-652.44067924,0.000129,2]
[339386373,1727537440434,-2573.87422243,0.000129,2]
[339386374,1727537440445,-3580.724372,0.000129,2]
[339386392,1727537443381,-674.25763584,0.000129,2]
[339386393,1727537443393,-3075.72210345,0.000129,2]
[339386395,1727537443405,-584.94556398,0.000129,2]
[339386397,1727537443416,-135729.98338126,0.000129,2]
[339386398,1727537443427,-1195.70043122,0.000129,2]
[339386399,1727537443438,-489.29187735,0.000129,2]
[339386400,1727537443449,-297.70000018,0.000129,2]
[339386401,1727537443529,-674.74381166,0.000129,2]
[339386402,1727537443541,-660.19,0.000129,2]
[339386403,1727537443552,-2204.45423647,0.000129,2]
[339386404,1727537443564,-932.50624994,0.000129,2]
[339386405,1727537443575,-2115.73344882,0.000129,2]
[339386406,1727537443588,-5150.83994801,0.000129,2]
[339386407,1727537443600,-3632.36465177,0.000129,2]
[339386408,1727537443611,-3799.999993,0.000129,2]
[339386409,1727537443623,-2743.43994,0.000129,2]
[339386410,1727537443635,-10815.43476457,0.000129,2]
[339386411,1727537443645,-2022.72,0.000129,2]
[339386412,1727537443655,-1282.631928,0.000129,2]
[339386413,1727537443665,-1722.84510036,0.000129,2]
[339386414,1727537443678,-1175.26064,0.000129,2]
[339386415,1727537443689,-513.18500005,0.000129,2]
[339386416,1727537443700,-5403.05417497,0.000129,2]
[339386417,1727537443712,-701.666667,0.000129,2]
[339386418,1727537443734,-18453.32731762,0.000129,2]
[339386419,1727537443744,-300.0,0.000129,2]
[339386420,1727537443754,-500.0,0.000129,2]
[339386421,1727537443763,-1000.0,0.000129,2]
[339386422,1727537443773,-500.0,0.000129,2]
[339386423,1727537443782,-1459.51674539,0.000129,2]
[339386424,1727537443793,-1006.62630079,0.000129,2]
[339386425,1727537443804,-352.72799642,0.000129,2]